fUSD/lending_fUSD_20240820
["ID","MTS","AMOUNT","RATE_DAILY","PERIOD"]
[335400775,1724190646584,-356.83,0.00017069,2]
[335400776,1724190646595,-150.0,0.00017069,2]
[335400777,1724190646605,-355.3,0.00017069,2]
[335400779,1724190646615,-150.0,0.00017069,2]
[335400780,1724190646624,-22551.0613001,0.00017092,3]
[335400782,1724190646634,-320.72880982,0.00017161,2]
[335400784,1724190646643,-7824.74485722,0.00017223,2]
[335400786,1724190646652,-500.0,0.00017243,2]
[335400788,1724190646662,-220.382832,0.0001726,2]
[335400790,1724190646671,-606.87136242,0.00017274,2]
[335400792,1724190646679,-455.56,0.00017315,2]
[335400794,1724190646691,-573.33965524,0.00017396,2]
[335400796,1724190646701,-167.0,0.00017399,2]
[335400798,1724190646711,-1089.55055981,0.00017455,5]
[335400800,1724190646721,-324.84,0.00017455,2]
[335400802,1724190646730,-22551.0613001,0.00017483,3]
[335400804,1724190646739,-922.41264747,0.00017538,2]
[335400805,1724190646749,-500.0,0.00017574,2]
[335400807,1724190646758,-241.38,0.00017592,2]
[335400809,1724190646767,-500.0,0.00017701,2]
[335400811,1724190646776,-500.0,0.00017753,2]
[335400813,1724190646785,-7500.0,0.0001777,2]
[335400815,1724190646794,-2607.48507462,0.00017787,13]
[335400816,1724190646803,-150.75,0.0001779,2]
[335400818,1724190646811,-217.0,0.0001779,2]
[335400820,1724190646821,-164.95731865,0.00017791,2]
[335400822,1724190646830,-9752.53971679,0.000178,2]
[335400824,1724190646839,-1152.0,0.00017827,2]
[335400826,1724190646848,-30813.10516869,0.00017851,3]
[335400828,1724190646863,-14289.01743151,0.00017851,3]
[335400830,1724190646872,-22551.0613001,0.0001786,3]
[335400831,1724190646881,-25726.0387844,0.0001786,3]
[335400833,1724190646892,-45102.1226002,0.0001787,3]
[335400834,1724190646901,-25726.0387844,0.0001787,3]
[335400835,1724190646910,-261.1055,0.00017873,2]
[335400836,1724190646919,-150.75,0.0001788,2]
[335400837,1724190646928,-1064.61859621,0.00017887,2]
[335400838,1724190646938,-5631.2864504,0.00017888,2]
[335400839,1724190646947,-57400.94360399,0.0001789,3]
[335400840,1724190646959,-250.10479714,0.0001789,3]
[335400841,1724190646970,-815.6971792,0.0001789,3]
[335400844,1724190646981,-431.885,0.0001789,3]
[335400846,1724190646992,-8754.55331997,0.0001789,3]
[335400848,1724190647001,-77178.1163532,0.0001789,3]
[335400849,1724190647010,-677.48,0.00017899,2]
[335400851,1724190647019,-78670.85510672,0.000179,3]
[335400853,1724190647034,-611.7165479,0.000179,3]
[335400855,1724190647046,-12780.09052708,0.000179,3]
[335401240,1724191352488,310.0,0.00010012,2]
[335401293,1724191831650,-217.24,0.00010959,2]
[335401294,1724191831659,-156.29,0.00011,2]
[335401295,1724191831668,-63.44049894,0.00011444,2]
[335401296,1724191831680,-436.55950106,0.00011444,2]
[335401297,1724191831690,-162.41234327,0.00011848,2]
[335401298,1724191831701,-337.58765673,0.00011848,2]
[335401299,1724191831710,-1500.0,0.00012089,2]
[335401300,1724191831719,-137.23484327,0.00012089,2]
[335401301,1724191831731,-17.76515673,0.00012089,2]
[335401302,1724191831741,-155.0,0.00012089,2]
[335401303,1724191831751,-155.0,0.00012126,2]
[335401304,1724191831760,-500.0,0.00012162,2]
[335401305,1724191831770,-48.35444464,0.00012334,2]
[335401306,1724191831781,-451.64555536,0.00012334,2]
[335401307,1724191831791,-500.0,0.00012363,2]
[335401308,1724191831800,-690.0,0.00012779,2]
[335401309,1724191831810,-500.53034285,0.00012815,2]
[335401310,1724191831819,-919.78,0.00012884,2]
[335401311,1724191831828,-250.0,0.00012926,2]
[335401312,1724191831838,-238.95,0.00012985,2]
[335401313,1724191831847,-426.74,0.00013029,2]
[335401314,1724191831857,-155.0,0.00013052,2]
[335401315,1724191831867,-198.35804343,0.00013052,2]
[335401316,1724191831879,-3741.010236,0.00013052,2]
[335401317,1724191831888,-723.7000812,0.00013086,2]
[335401318,1724191831899,-893.27357362,0.00013086,2]
[335401319,1724191831908,-217.17304257,0.00013086,2]
[335401320,1724191831918,-152.82,0.00013292,2]
[335401321,1724191831927,-331.3534943,0.00013292,2]
[335401322,1724191831936,-203.08806598,0.00013292,2]
[335401323,1724191831945,-419.23699242,0.00013292,2]
[335401324,1724191831954,-155.39113803,0.00013292,2]
[335401325,1724191831963,-500.0,0.0001331,2]
[335401326,1724191831973,-534.91447851,0.00013414,2]
[335401327,1724191831988,-201.83663659,0.00013414,2]
[335401328,1724191831998,-500.0,0.00013667,2]
[335401329,1724191832007,-500.0,0.00013676,2]
[335401330,1724191832016,-1411.27209063,0.00013681,2]
[335401331,1724191832028,-542.67878054,0.00013681,2]
[335401332,1724191832039,-6546.04912883,0.00013681,2]
[335401333,1724191832048,-500.0,0.00013685,2]
[335401334,1724191832058,-8500.0,0.0001369,2]
[335401335,1724191832067,-5341.24065732,0.0001369,2]
[335401336,1724191832076,-500.0,0.00013693,2]
[335401337,1724191832087,-200.0,0.00013699,2]
[335401338,1724191832096,-2751.0,0.00013699,2]
[335401339,1724191832106,-500.0,0.00013702,2]
[335401340,1724191832123,-500.0,0.00013711,2]
[335401341,1724191832133,-500.0,0.0001372,2]
[335401342,1724191832142,-500.0,0.00013729,2]
[335401343,1724191832152,-500.0,0.00013737,2]
[335401344,1724191832162,-500.0,0.00013737,2]
[335401345,1724191832172,-500.0,0.00013746,2]
[335401346,1724191832181,-500.0,0.00013755,2]
[335401347,1724191832191,-500.0,0.00013764,2]
[335401348,1724191832200,-500.0,0.00013773,2]
[335401349,1724191832209,-500.0,0.00013781,2]
[335401350,1724191832219,-500.0,0.0001379,2]
[335401351,1724191832228,-500.0,0.00013799,2]
[335401352,1724191832238,-3019.857,0.000138,2]
[335401353,1724191832247,-5800.0,0.00013848,2]
[335401354,1724191832256,-5800.0,0.00013857,2]
[335401355,1724191832265,-5800.0,0.00013865,2]
[335401356,1724191832275,-5800.0,0.00013874,2]
[335401357,1724191832284,-5800.0,0.00013882,2]
[335401358,1724191832293,-5800.0,0.0001389,2]
[335401359,1724191832303,-5800.0,0.00013899,2]
[335401360,1724191832312,-35000.0,0.000139,2]
[335401361,1724191832321,-23212.99952279,0.000139,2]
[335401362,1724191832330,-3912.37242861,0.00013999,2]
[335401363,1724191832340,-500.0,0.00014099,2]
[335401364,1724191832350,-1398.92,0.00014251,2]
[335401365,1724191832359,-193.65,0.00014251,2]
[335401366,1724191832369,-152.55,0.00014292,2]
[335401367,1724191832378,-250.0,0.0001433,2]
[335401368,1724191832387,-500.0,0.00014513,2]
[335401369,1724191832396,-415.2008792,0.00014517,2]
[335401370,1724191832406,-1000.0,0.0001454,2]
[335401371,1724191832415,-316.61202881,0.00014753,2]
[335401372,1724191832424,-4958.6828,0.000148,2]
[335401373,1724191832433,-347.853,0.000148,2]
[335401374,1724191832443,-1125.1539,0.000148,2]
[335401375,1724191832452,-10000.649891,0.0001485,2]
[335401376,1724191832462,-3085.36,0.000149,31]
[335401377,1724191832472,-3085.36,0.000149,31]
[335401378,1724191832481,-3085.36,0.000149,31]
[335401379,1724191832491,-3085.36,0.000149,31]
[335401380,1724191832500,-3085.36,0.000149,31]
[335401381,1724191832509,-3085.36,0.000149,31]
[335401382,1724191832519,-3085.36,0.000149,31]
[335401383,1724191832528,-3085.36,0.000149,31]
[335401384,1724191832542,-3085.36,0.000149,31]
[335401385,1724191832551,-3085.36,0.000149,31]
[335401386,1724191832561,-3085.36,0.000149,31]
[335401387,1724191832570,-3085.36,0.000149,31]
[335401388,1724191832579,-3085.36,0.000149,31]
[335401389,1724191832588,-3085.36,0.000149,31]
[335401390,1724191832598,-3085.36,0.000149,31]
[335401391,1724191832607,-3085.36,0.000149,31]
[335401392,1724191832620,-204.76688131,0.00014939,2]
[335401393,1724191832629,-5677.33,0.00014956,2]
[335401394,1724191832638,-1675.0,0.00015,2]
[335401395,1724191832648,-495.0,0.00015,2]
[335401396,1724191832658,-150.0,0.00015,15]
[335401397,1724191832667,-500.0,0.00015039,2]
[335401398,1724191832677,-300.0,0.00015068,2]
[335401399,1724191832687,-500.0,0.00015256,2]
[335401400,1724191832696,-426.74,0.00015293,2]
[335401401,1724191832705,-500.0,0.0001534,2]
[335401402,1724191832714,-400.0,0.00015517,2]
[335401403,1724191832724,-167.0,0.00015831,2]
[335401404,1724191832733,-150.0,0.00016,2]
[335401405,1724191832742,-254.532613,0.00016,2]
[335401406,1724191832752,-1000.0,0.00016028,2]
[335401407,1724191832762,-300.0,0.00016438,2]
[335401408,1724191832771,-173.73,0.00016712,2]
[335401409,1724191832781,-174.11,0.00016856,2]
[335401410,1724191832790,-150.0,0.00016915,2]
[335401411,1724191832800,-500.0,0.00017124,2]
[335401412,1724191832810,-167.0,0.0001742,2]
[335401413,1724191832820,-400.0,0.00017457,2]
[335401414,1724191832829,-426.74,0.00017557,2]
[335401415,1724191832838,-217.24,0.00017592,2]
[335401416,1724191832847,-500.0,0.000177,6]
[335401417,1724191832856,-150.0,0.0001772,2]
[335401418,1724191832866,-157.95458,0.0001772,2]
[335401419,1724191832875,-938.4516,0.00017779,2]
[335401420,1724191832885,-8703.7603,0.0001779,2]
[335401421,1724191832894,-217.0,0.0001779,2]
[335401422,1724191832903,-2852.9344,0.00017799,2]
[335401423,1724191832913,-1000.0,0.000178,6]
[335401424,1724191832922,-3960.74507772,0.0001789,2]
[335401425,1724191832934,-1570.52069261,0.0001789,2]
[335401426,1724191832945,-340.78735789,0.0001789,2]
[335401427,1724191832956,-2684.29840689,0.0001789,2]
[335401428,1724191832968,-703.37788318,0.0001789,2]
[335401429,1724191832979,-436.06621227,0.0001789,2]
[335401430,1724191832989,-540.70213816,0.0001789,2]
[335401431,1724191833000,-792.5901174,0.0001789,2]
[335401432,1724191833020,-4118.47040795,0.0001789,2]
[335401433,1724191833032,-16464.28750593,0.0001789,2]
[335401434,1724191833041,-13311.94836587,0.0001789,3]
[335401435,1724191833053,-727.39559761,0.0001789,3]
[335401436,1724191833065,-609.67999998,0.0001789,3]
[335401441,1724191837702,-3912.37242861,0.00014843,2]
[335401442,1724191837713,-6912.47775104,0.0001789,3]
[335401443,1724191837722,-467.14661128,0.00017896,2]
[335401444,1724191837733,-85.81367442,0.00017896,2]
[335401445,1724191837743,-1123.58949704,0.00017896,2]
[335401446,1724191837799,-351.05304916,0.00017896,2]
[335401447,1724191837808,-663.5523433,0.00017896,2]
[335401448,1724191837817,-500.0,0.00017899,2]
[335401449,1724191837826,-500.0,0.00017899,2]
[335401450,1724191837836,-500.0,0.00017899,2]
[335401451,1724191837845,-500.0,0.00017899,2]
[335401452,1724191837855,-500.0,0.00017899,2]
[335401453,1724191837864,-500.0,0.00017899,2]
[335401454,1724191837875,-37783.25272282,0.000179,3]
[335401455,1724191837884,-8535.18161566,0.000179,3]
[335401456,1724191837894,-538.0341324,0.000179,2]
[335401457,1724191837903,-495.0,0.000179,2]
[335401458,1724191837912,-164.95731865,0.000179,2]
[335401459,1724191837921,-261.1055,0.000179,2]
[335401460,1724191837930,-495.0,0.000179,2]
[335401461,1724191837939,-1500.0,0.000179,6]
[335401462,1724191837949,-7500.0,0.000179,2]
[335401463,1724191837958,-755.20525403,0.000179,3]
[335401464,1724191837967,-732.41234568,0.000179,2]
[335401465,1724191837976,-3339.17690621,0.0001792,4]
[335401466,1724191837986,-150.75,0.0001796,2]
[335401467,1724191837995,-150930.512002,0.0001797,3]
[335401468,1724191838004,-25290.0042287,0.0001797,3]
[335401469,1724191838014,-1474.6425462,0.00017978,2]
[335401470,1724191838024,-500.0,0.00017979,2]
[335401471,1724191838034,-500.0,0.00017979,2]
[335401472,1724191838045,-5000.0,0.0001798,32]
[335401474,1724191838054,-5000.0,0.0001798,8]
[335401476,1724191838063,-150.75,0.0001798,2]
[335401478,1724191838072,-150.75,0.0001798,2]
[335401480,1724191838082,-150.75,0.0001798,2]
[335401481,1724191838091,-1474.6425462,0.00017987,2]
[335401483,1724191838101,-946.32764107,0.00017987,2]
[335401485,1724191838110,-552.9602857,0.00017988,2]
[335401487,1724191838119,-552.9602857,0.00017988,2]
[335401489,1724191838129,-1474.6425462,0.00017988,2]
[335401491,1724191838138,-1474.6425462,0.00017988,2]
[335401493,1724191838148,-25290.0042287,0.00017989,3]
[335401497,1724191838157,-500.0,0.00017989,2]
[335401500,1724191838166,-500.0,0.00017989,2]
[335401504,1724191838175,-500.0,0.00017989,2]
[335401508,1724191838184,-500.0,0.00017989,2]
[335401512,1724191838194,-500.0,0.00017989,2]
[335401516,1724191838203,-500.0,0.00017989,2]
[335401520,1724191838212,-500.0,0.00017989,2]
[335401523,1724191838222,-500.0,0.00017989,2]
[335401526,1724191838231,-500.0,0.00017989,2]
[335401528,1724191838240,-500.0,0.00017989,2]
[335401529,1724191838249,-500.0,0.00017989,2]
[335401531,1724191838258,-500.0,0.00017989,2]
[335401533,1724191838267,-500.0,0.00017989,2]
[335401535,1724191838276,-500.0,0.00017989,2]
[335401537,1724191838286,-500.0,0.00017989,2]
[335401539,1724191838295,-500.0,0.00017989,2]
[335401541,1724191838304,-500.0,0.00017989,2]
[335401543,1724191838313,-500.0,0.00017989,2]
[335401545,1724191838323,-500.0,0.00017989,2]
[335401547,1724191838332,-500.0,0.00017989,2]
[335401549,1724191838343,-150.75,0.0001799,2]
[335401551,1724191838352,-150.75,0.0001799,2]
[335401553,1724191838362,-150.75,0.0001799,2]
[335401555,1724191838371,-150.75,0.0001799,2]
[335401557,1724191838381,-500.0,0.0001799,2]
[335401559,1724191838391,-366545.529147,0.0001799,3]
[335401561,1724191838400,-21947.45727307,0.0001799,3]
[335401577,1724191838545,-6533.9822821,0.0001799,3]
[335401579,1724191838556,-2730.40354718,0.0001799,3]
[335401581,1724191838567,-25299.15984209,0.0001799,3]
[335401699,1724191839937,-593.37,0.00015687,2]
[335401700,1724191839950,-1879.93159493,0.00015687,2]
[335401701,1724191839961,-1439.07083368,0.00015687,2]
[335401702,1724191839971,-991.46458985,0.0001799,3]
[335401703,1724191839983,-3291.39065368,0.0001799,3]
[335401704,1724191840076,-23501.74223655,0.0001799,3]
[335401705,1724191840087,-891.51412651,0.0001799,3]
[335401706,1724191840101,-392.85540526,0.0001799,3]
[335401707,1724191840113,-644.10641409,0.0001799,3]
[335401708,1724191840125,-1225.9364753,0.0001799,3]
[335401709,1724191840136,-1548.34307602,0.0001799,3]
[335401710,1724191840148,-509.73860691,0.0001799,3]
[335401711,1724191840161,-649.02,0.0001799,3]
[335401712,1724191840173,-618.97794133,0.0001799,3]
[335401713,1724191840184,-205028.33458789,0.0001799,3]
[335401714,1724191840195,-2409.35153101,0.0001799,3]
[335401715,1724191840207,-547.63861055,0.0001799,3]
[335401716,1724191840218,-1092.27862809,0.0001799,3]
[335401717,1724191840246,-1396.69046004,0.0001799,3]
[335401719,1724191840257,-1367.59375518,0.0001799,3]
[335401751,1724191842788,-155.0,0.00013052,2]
[335401752,1724191842798,-490.9431185,0.0001799,3]
[335401753,1724191842809,-3401.48620004,0.0001799,3]
[335401754,1724191842833,-800.90047991,0.0001799,3]
[335401755,1724191842844,-121300.85453258,0.0001799,3]
[335401756,1724191842857,-127767.92865827,0.0001799,3]
[335401757,1724191842867,-150.75,0.0001799,2]
[335401758,1724191842877,-150.75,0.0001799,2]
[335401759,1724191842886,-150.75,0.0001799,2]
[335401760,1724191842896,-150.75,0.0001799,2]
[335401761,1724191842906,-150.75,0.0001799,2]
[335401762,1724191842916,-150.75,0.0001799,2]
[335401763,1724191842925,-151.0,0.0001799,2]
[335401764,1724191842935,-5677.96584642,0.00017997,2]
[335401765,1724191842945,-1892.65528214,0.00017997,2]
[335401766,1724191842954,-557.9332102,0.00017999,2]
[335401767,1724191842963,-500.0,0.00017999,2]
[335401768,1724191842973,-634.69572772,0.00017999,2]
[335401769,1724191842982,-500.0,0.00017999,2]
[335401770,1724191842991,-163.90595851,0.00017999,2]
[335401771,1724191843000,-447.54523568,0.00017999,2]
[335401772,1724191843010,-500.0,0.00017999,2]
[335401773,1724191843020,-500.0,0.00017999,2]
[335401774,1724191843187,-500.0,0.00017999,2]
[335401775,1724191843202,-500.0,0.00017999,2]
[335401776,1724191843212,-500.0,0.00017999,2]
[335401777,1724191843222,-500.0,0.00017999,2]
[335401778,1724191843231,-500.0,0.00017999,2]
[335401779,1724191843240,-500.0,0.00017999,2]
[335401780,1724191843249,-500.0,0.00017999,2]
[335401781,1724191843259,-500.0,0.00017999,2]
[335401782,1724191843268,-500.0,0.00017999,2]
[335401783,1724191843277,-500.0,0.00017999,2]
[335401785,1724191843287,-500.0,0.00017999,2]
[335401787,1724191843296,-500.0,0.00017999,2]
[335401788,1724191843305,-500.0,0.00017999,2]
[335401789,1724191843315,-500.0,0.00017999,2]
[335401790,1724191843324,-500.0,0.00017999,2]
[335401791,1724191843333,-500.0,0.00017999,2]
[335401792,1724191843343,-500.0,0.00017999,2]
[335401793,1724191843352,-500.0,0.00017999,2]
[335401794,1724191843362,-500.0,0.00017999,2]
[335401795,1724191843371,-76075.85889447,0.00018,2]
[335401799,1724191844169,-1968.40098272,0.00018,2]
[335401800,1724191844180,-869.95370905,0.00018,2]
[335401801,1724191844191,-627.59413878,0.00018,2]
[335401802,1724191844201,-2425.04959483,0.00018,2]
[335401803,1724191844212,-778.84,0.00018,2]
[335401804,1724191844223,-478.6711612,0.00018,2]
[335401817,1724191845743,-415.2008792,0.00014509,2]
[335401819,1724191845752,-3912.37242861,0.00016532,2]
[335401821,1724191845762,-217.0,0.0001789,2]
[335401824,1724191845771,-366138.10744876,0.00018,2]
[335401828,1724191845784,-260928.47924186,0.00018,2]
[335401831,1724191845798,-278621.62768773,0.00018,2]
[335401833,1724191845810,-612.67,0.00018,2]
[335401835,1724191845822,-2736.68052682,0.00018,2]
[335401838,1724191845834,-2990.50036596,0.00018,2]
[335401846,1724191845903,-273.72011597,0.00018,2]
[335401848,1724191845914,-47045.60000128,0.00018,2]
[335401850,1724191845923,-300.6705031,0.00018,20]
[335401852,1724191845933,-229.2768324,0.00018,2]
[335401854,1724191845942,-666.62922854,0.00018,30]
[335401856,1724191845951,-166862.38635857,0.00018,7]
[335401858,1724191845961,-198582.78518327,0.00018,2]
[335401860,1724191845972,-364.01615684,0.00018,2]
[335401862,1724191845983,-2836.5862804,0.00018,2]
[335401864,1724191845994,-10926.63958328,0.00018,2]
[335401866,1724191846006,-281.00881241,0.00018,2]
[335401868,1724191846017,-2000.0,0.00018,2]
[335401869,1724191846029,-7508.64419436,0.00018,2]
[335401870,1724191846041,-307.982,0.00018,2]
[335401871,1724191846052,-417.47216,0.00018,2]
[335401872,1724191846063,-3570.01645347,0.00018,2]
[335401884,1724192393314,450.2,8.219e-05,2]
[335401885,1724192459808,1406.52647038,9.843e-05,2]
[335401886,1724192459836,243.47352962,9.843e-05,2]
[335401887,1724192635577,26.53921106,0.0001,2]
[335401888,1724192635602,1023.46078894,0.0001,2]
[335401889,1724192639712,725.4034375,0.0001,3]
[335401890,1724192639737,1274.5965625,0.0001,3]
[335401891,1724192709607,152.98,7.102e-05,2]
[335401894,1724192761305,298.82501511,8.608e-05,2]
[335401895,1724192761334,201.87122698,8.608e-05,2]
[335401896,1724192793642,250.0,9.842e-05,2]
[335401897,1724192798523,168.79478605,8.608e-05,2]
[335401898,1724192822702,155.23,8.219e-05,2]
[335401904,1724192827453,271.21586941,9.764e-05,2]
[335401914,1724192871463,723.7000812,0.00010026,2]
[335401915,1724192888443,82.93963627,8.219e-05,2]
[335401916,1724192888467,376.39036373,8.219e-05,2]
[335401917,1724192921843,1000.0,9.838e-05,2]
[335401921,1724192946991,225.53,9.834e-05,2]
[335401942,1724193031792,-300.0,0.000104,3]
[335401944,1724193031802,-459.33,0.00010468,2]
[335401945,1724193031811,-304.73757767,0.00010471,2]
[335401946,1724193031821,-700.0,0.000105,3]
[335401947,1724193031830,-1000.0,0.000106,3]
[335401948,1724193031840,-1400.0,0.000107,3]
[335401949,1724193031849,-2500.0,0.00010737,2]
[335401950,1724193031859,-2500.0,0.00010741,2]
[335401951,1724193031868,-320.72880982,0.00010742,2]
[335401952,1724193031878,-171.44483393,0.00010743,2]
[335401953,1724193031887,-488.27489712,0.00010752,2]
[335401954,1724193031897,-300.0,0.00010753,2]
[335401955,1724193031907,-6542.3422762,0.00010754,2]
[335401956,1724193031916,-8628.07,0.00010754,2]
[335401957,1724193031925,-1700.0,0.000108,3]
[335401958,1724193031935,-150.76,0.00010832,2]
[335401959,1724193031944,-150.76,0.00010833,2]
[335401960,1724193031954,-150.76,0.00010837,2]
[335401961,1724193031965,-4300.71848266,0.00010837,2]
[335401962,1724193031977,-340.28165674,0.00010837,2]
[335401963,1724193031988,-262.46590742,0.00010837,2]
[335401964,1724193032000,-4995.09547225,0.00010837,2]
[335401965,1724193032015,-10130.5353258,0.00010837,2]
[335401966,1724193032038,-3834.18185265,0.00010837,2]
[335401967,1724193032051,-440.46604856,0.00010837,2]
[335401968,1724193032067,-545.72240419,0.00010837,2]
[335401969,1724193032078,-655.60712406,0.00010837,2]
[335401970,1724193032090,-2883.21346343,0.00010837,2]
[335401975,1724193037776,-61731.81587576,0.00010837,2]
[335401976,1724193037786,-7483.05479275,0.00010838,2]
[335401977,1724193037795,-29437.51111306,0.00010839,2]
[335401978,1724193037805,-9650.06329317,0.00010839,2]
[335401979,1724193037814,-7483.05479275,0.00010839,2]
[335401980,1724193037823,-657.73503838,0.00010839,2]
[335401981,1724193037833,-226.89737073,0.0001084,2]
[335401982,1724193037842,-289.35912071,0.0001084,2]
[335401983,1724193037851,-289.35912071,0.0001084,2]
[335401984,1724193037860,-499.99,0.0001084,2]
[335401985,1724193037869,-289.35912071,0.00010841,2]
[335401986,1724193037879,-4825.03164659,0.00010841,2]
[335401987,1724193037888,-235158.41241807,0.00010841,2]
[335401988,1724193037898,-226.89737073,0.00010841,2]
[335401989,1724193037908,-90120.10361352,0.00010842,2]
[335401990,1724193037917,-226.89737073,0.00010842,2]
[335401991,1724193037926,-235158.41241807,0.00010842,2]
[335401992,1724193037936,-235158.41241807,0.00010842,2]
[335401993,1724193037945,-150.76,0.00010842,2]
[335401994,1724193037955,-235158.41241807,0.00010843,2]
[335401995,1724193037964,-165.40503487,0.00010843,2]
[335401996,1724193037973,-289.35912071,0.00010843,2]
[335401997,1724193037983,-657.73503838,0.00010844,2]
[335401998,1724193037992,-151.0,0.00010844,2]
[335401999,1724193038001,-151.0,0.00010844,2]
[335402000,1724193038011,-151.0,0.00010844,2]
[335402001,1724193038020,-164.927777,0.00010844,2]
[335402002,1724193038030,-164.927777,0.00010844,2]
[335402003,1724193038039,-190.636864,0.00010844,2]
[335402004,1724193038049,-151.0,0.00010844,2]
[335402005,1724193038058,-190.636864,0.00010844,2]
[335402006,1724193038068,-151.0,0.00010844,2]
[335402007,1724193038077,-151.0,0.00010844,2]
[335402008,1724193038087,-151.0,0.00010844,2]
[335402009,1724193038096,-151.0,0.00010844,2]
[335402010,1724193038106,-241.092008,0.00010844,2]
[335402011,1724193038119,-241.092008,0.00010844,2]
[335402012,1724193038128,-151.0,0.00010844,2]
[335402013,1724193038137,-151.0,0.00010844,2]
[335402014,1724193038146,-414.910712,0.00010844,2]
[335402015,1724193038157,-151.0,0.00010844,2]
[335402016,1724193038166,-414.910712,0.00010844,2]
[335402017,1724193038176,-151.0,0.00010844,2]
[335402018,1724193038186,-151.0,0.00010844,2]
[335402020,1724193038195,-151.0,0.00010844,2]
[335402022,1724193038204,-151.0,0.00010844,2]
[335402024,1724193038214,-151.0,0.00010844,2]
[335402026,1724193038223,-151.0,0.00010844,2]
[335402028,1724193038232,-151.0,0.00010844,2]
[335402030,1724193038242,-151.0,0.00010844,2]
[335402032,1724193038251,-151.0,0.00010844,2]
[335402033,1724193038260,-529.041324,0.00010844,2]
[335402035,1724193038270,-529.041324,0.00010844,2]
[335402037,1724193038279,-151.0,0.00010844,2]
[335402039,1724193038288,-151.0,0.00010844,2]
[335402041,1724193038298,-151.0,0.00010844,2]
[335402043,1724193038307,-151.0,0.00010844,2]
[335402045,1724193038317,-151.0,0.00010844,2]
[335402047,1724193038327,-151.0,0.00010844,2]
[335402048,1724193038336,-151.0,0.00010844,2]
[335402049,1724193038346,-359599.87728667,0.00010844,2]
[335402050,1724193038355,-165.40503487,0.00010845,2]
[335402051,1724193038365,-150.76,0.00010846,2]
[335402052,1724193038375,-90120.10361352,0.00010846,2]
[335402053,1724193038384,-226.89737073,0.00010846,2]
[335402054,1724193038394,-9650.06329317,0.00010846,2]
[335402055,1724193038403,-90120.10361352,0.00010847,2]
[335402056,1724193038413,-18707.636982,0.00010847,2]
[335402057,1724193038423,-18707.636982,0.00010848,2]
[335402058,1724193038433,-359599.87728667,0.0001085,2]
[335402059,1724193038442,-289.35912071,0.0001085,2]
[335402061,1724193038451,-4825.03164659,0.0001085,2]
[335402063,1724193038461,-151.0,0.0001085,2]
[335402065,1724193038470,-172.124287,0.0001085,2]
[335402066,1724193038479,-151.0,0.0001085,2]
[335402068,1724193038488,-164.927777,0.0001085,2]
[335402071,1724193038498,-164.927777,0.0001085,2]
[335402073,1724193038507,-190.636864,0.0001085,2]
[335402075,1724193038517,-151.0,0.0001085,2]
[335402076,1724193038526,-190.636864,0.0001085,2]
[335402078,1724193038535,-209.453387,0.0001085,2]
[335402080,1724193038544,-151.0,0.0001085,2]
[335402082,1724193038555,-151.0,0.0001085,2]
[335402084,1724193038565,-151.0,0.0001085,2]
[335402086,1724193038575,-241.092008,0.0001085,2]
[335402088,1724193038585,-241.092008,0.0001085,2]
[335402090,1724193038594,-151.0,0.0001085,2]
[335402092,1724193038604,-260.896586,0.0001085,2]
[335402094,1724193038613,-414.910712,0.0001085,2]
[335402096,1724193038622,-151.0,0.0001085,2]
[335402098,1724193038631,-414.910712,0.0001085,2]
[335402099,1724193038641,-151.0,0.0001085,2]
[335402101,1724193038650,-151.0,0.0001085,2]